{"text_format":"3","workbook":"xlsx","n_sheets":2,"sheets":["Instructions","Facture"],"not_rendered":{"defined_names":1},"read":"whole","date_system":"1900"}

{"sheet":"Instructions","index":0,"n_rows":52,"n_cols":17,"rows_kept":52,"merged":[[1,1,21,14],[1,16,16,20],[22,22,22,24],[22,25,22,30],[24,1,35,14],[38,1,46,14],[48,1,48,9],[48,10,48,14],[51,1,60,14]]}
[]
[null,"\n1- Instructions concernant l'impression\n\nZone d’Impression Définie :\nAttention : Ce modèle a une zone d’impression prédéfinie. Cela signifie que seules les cellules incluses dans cette zone seront imprimées par défaut.\nLa zone d’impression est délimitée par des lignes pointillées dans l’aperçu avant impression.\nElle sert à éviter les impressions accidentelles de parties non essentielles de la feuille de calcul.\n\nPour Imprimer la Zone Définie :\nSi vous souhaitez imprimer uniquement la zone d’impression, il vous suffit de lancer l’impression comme d’habitude.\nVérifiez l’aperçu avant impression pour vous assurer que la zone d’impression est correcte.\n\nPour Annuler la Zone d’Impression :\nSi vous avez besoin d’imprimer au-delà de la zone définie, suivez ces étapes :\nAllez dans l’onglet “Mise en page”.\nDans le groupe “Mise en page”, cliquez sur “Zone d’impression”, puis sur “Annuler la zone d’impression”.\nMaintenant, vous pouvez définir vous-même ce qui va être imprimé en utilisant l'aperçu des sauts de pages.",{"$nulls":14},"Votre avis compte!\n\nAprès avoir utilisé ce modèle Excel, n’hésitez pas à partager vos impressions sur le lien ci-dessous.\n\nVos commentaires nous aident à améliorer et à affiner nos outils pour mieux répondre à vos besoins.\n\nMerci d’avance pour votre contribution !"]
{"$rows_empty":16}
[{"$nulls":16},"https://officepourtous.com/modeles-factures-excel/"]
[]
[]
[]
[]
[]
[null,"\n2- Formules de la colonne \"Total par article (TTC)\":\n\nL'utilisation des fonctions SI et SOMME permet de gérer les cas de non saisie des valeurs nécessaires, de saisie de texte à la place de nombres, et de saisie des nombres négatifs ou de 0:\n\n- En cas de non saisie des valeurs : Pas d'affichage de 0 comme résultat (Rien n'est affiché). \n- En cas de saisie de texte à la place de nombres : Pas d'affichage de l'erreur #VALEUR comme résultat (Rien n'est affiché).\n- En cas de saisie de 0 ou de nombres négatifs : Pas de calcul et rien n'est affiché."]
{"$rows_empty":13}
[null,"\n3- Ajouter une ligne d'article au tableau:\n\nSi vous avez rempli toutes les lignes d'articles du tableau et avez besoin d'encore plus, ajoutez-en une ligne en allant à la dernière cellule (au niveau de la colonne \"Total par article (TTC)\" au dessus de la cellule abritant le résultat calculé du Total TTC), puis appuyez sur la touche Tabulation de votre clavier. Excel insérera une ligne supplémentaire tout en conservant le même style du tableau."]
{"$rows_empty":9}
[null,"La structure en tableau propose beaucoup d'autres avantages; pour en savoir plus, consultez :",{"$nulls":8},"https://officepourtous.com/creer-tableau-excel/"]
[]
[]
[null,"\n4- Changer l'aspect visuel du tableau principal:\n\nL'aspect visuel du tableau principal est dû au style personnalisé \"StyleBleu\" qui lui est appliqué.\nMais, si vous désirez changer cet aspect, vous pouvez utiliser n'importe quel autre style en cliquant dans le tableau, puis en choisissant un style depuis l'onglet \"Outils de tableau - Création\".\nSi vous le faîtes, pensez aussi à changer les couleurs de fond et de police au niveau de l'entête et du pied de page pour plus de cohérence visuelle."]

{"sheet":"Facture","index":1,"n_rows":46,"n_cols":5,"rows_kept":46,"merged":[[1,3,1,4],[2,1,4,1],[5,1,5,2],[6,1,6,2],[7,1,7,2],[8,1,8,2],[9,1,9,2],[10,1,10,2],[11,1,11,2],[35,3,36,3],[35,4,36,4],[42,2,42,3],[43,1,43,3],[45,1,45,4],[46,2,46,3]]}
[]
[null,"L’espace réservé au logo figure dans cette cellule.",null,"Facture"]
[null,"Nom Entreprise / Entrepreneur",null,"Date :"]
[{"$nulls":3},"N° de facture :"]
[{"$nulls":3},"Référence client :"]
[null,"À :"]
[null,"Nom du client"]
[null,"Nom de la société"]
[null,"Adresse"]
[null,"Code postal, Ville"]
[null,"Email :"]
[null,"Téléphone :"]
[]
[null,"Produit","Quantité","Prix unitaire\n(TTC)","Total par article \n(TTC)"]
[null,"Ordinateur de bureau",4,{"v":520,"d":"520.00 €"},{"$f":"IF(SUM(C15)>0,IF(SUM(D15)>0,SUM(C15*D15),\"\"),\"\")","v":{"v":2080,"d":"2,080.00 €"}}]
[null,"Ordinateur Portable",2,{"v":340,"d":"340.00 €"},{"v":680,"d":"680.00 €"}]
[null,"Imprimante Laser Monochrome",7,{"v":120,"d":"120.00 €"},{"v":840,"d":"840.00 €"}]
[null,"Clé USB (128 Go)",20,null,""]
[{"$nulls":4},""]
[{"$nulls":4},""]
[{"$nulls":4},""]
[{"$nulls":4},""]
[{"$nulls":4},""]
[{"$nulls":4},""]
[{"$nulls":4},""]
[{"$nulls":4},""]
[{"$nulls":4},""]
[{"$nulls":4},""]
[{"$nulls":4},""]
[{"$nulls":4},""]
[{"$nulls":4},""]
[{"$nulls":4},""]
[{"$nulls":4},""]
[{"$nulls":4},""]
[{"$nulls":4},""]
[{"$nulls":3},"Montant Total TTC",{"$f":"IF(SUM(E15:E35)>0,SUM(E15:E35),\"\")","v":{"v":3600,"d":"3,600.00 €"}}]
[]
[]
[]
[]
[]
[]
[null,"Veuillez libeller tous les chèques à l’ordre de :",{"$f":"B3","v":"Nom Entreprise / Entrepreneur"}]
[null,"Nous vous remercions de votre confiance!"]
[]
[null,"Adresse, Code postal, Ville | Tél : 0000000000  | Fax : 0000000000 | Email : …......................................."]